fUSD/lending_fUSD_20251206
["ID","MTS","AMOUNT","RATE_DAILY","PERIOD"]
[396575309,1765056644492,-500.0,0.00016438,2]
[396575310,1765056644501,-500.0,0.00016438,2]
[396575311,1765056644511,-500.0,0.00016438,2]
[396575312,1765056644521,-595.83,0.00016438,2]
[396575313,1765056644530,-500.0,0.00016438,2]
[396575314,1765056644539,-869.14,0.00016438,2]
[396575315,1765056644549,-500.0,0.00016438,2]
[396575316,1765056644558,-587.79105833,0.00016438,2]
[396575317,1765056644567,-500.0,0.00016438,2]
[396575318,1765056644577,-500.0,0.00016438,2]
[396575319,1765056644586,-1988.09,0.00016438,2]
[396575320,1765056644595,-501.69452255,0.00016438,2]
[396575321,1765056644605,-500.0,0.00016438,2]
[396575322,1765056644614,-500.0,0.00016438,2]
[396575323,1765056644623,-500.0,0.00016438,2]
[396575324,1765056644633,-500.0,0.00016438,2]
[396575325,1765056644642,-500.0,0.00016438,2]
[396575326,1765056644652,-500.0,0.00016438,2]
[396575327,1765056644663,-500.0,0.00016438,2]
[396575328,1765056644672,-500.0,0.00016438,2]
[396575329,1765056644682,-500.0,0.00016438,2]
[396575330,1765056644691,-500.0,0.00016438,2]
[396575331,1765056644700,-500.0,0.00016438,2]
[396575332,1765056644710,-501.76168489,0.00016438,2]
[396575333,1765056644719,-274.59268005,0.00016438,2]
[396575334,1765056644728,-500.0,0.00016438,2]
[396575335,1765056644738,-500.0,0.00016438,2]
[396575336,1765056644751,-500.0,0.00016438,2]
[396575337,1765056644760,-1776.71,0.00016438,2]
[396575338,1765056644769,-532.09821768,0.00016438,2]
[396575339,1765056644779,-502.01367921,0.00016438,2]
[396575340,1765056644788,-896.95,0.00016438,2]
[396575341,1765056644803,-500.0,0.00016438,2]
[396575342,1765056644813,-500.0,0.00016438,2]
[396575343,1765056644823,-500.0,0.00016438,2]
[396575344,1765056644832,-500.0,0.00016438,2]
[396575345,1765056644842,-500.0,0.00016438,2]
[396575346,1765056644851,-151.0,0.00016438,2]
[396575347,1765056644860,-501.06889801,0.00016438,2]
[396575348,1765056644870,-500.0,0.00016438,2]
[396575349,1765056644879,-151.0,0.00016438,2]
[396575350,1765056644888,-500.0,0.00016438,2]
[396575351,1765056644898,-286.242662,0.00016438,2]
[396575352,1765056644907,-500.0,0.00016438,2]
[396575353,1765056644917,-500.0,0.00016438,2]
[396575354,1765056644926,-500.0,0.00016438,2]
[396575355,1765056644935,-151.0,0.00016438,2]
[396575356,1765056644945,-691.52,0.00016438,2]
[396575357,1765056644954,-500.0,0.00016438,2]
[396575358,1765056644963,-286.242662,0.00016438,2]
[396575359,1765056644973,-2142.97,0.00016438,2]
[396575360,1765056644982,-286.242662,0.00016438,2]
[396575361,1765056644991,-500.0,0.00016438,2]
[396575362,1765056645001,-2022.53,0.00016438,2]
[396575363,1765056645010,-500.0,0.00016438,2]
[396575364,1765056645019,-286.242662,0.00016438,2]
[396575365,1765056645028,-500.0,0.00016438,2]
[396575366,1765056645038,-531.56127084,0.00016438,2]
[396575367,1765056645047,-501.930503,0.00016438,2]
[396575368,1765056645057,-500.0,0.00016438,2]
[396575369,1765056645066,-566.88025106,0.00016438,2]
[396575370,1765056645076,-500.00575724,0.00016438,2]
[396575371,1765056645086,-500.0,0.00016438,2]
[396575372,1765056645095,-510.37888725,0.00016438,2]
[396575373,1765056645104,-500.0,0.00016438,2]
[396575374,1765056645114,-501.43240456,0.00016438,2]
[396575375,1765056645124,-500.0,0.00016438,2]
[396575376,1765056645133,-500.0,0.00016438,2]
[396575377,1765056645143,-500.0,0.00016438,2]
[396575378,1765056645152,-500.0,0.00016438,2]
[396575379,1765056645163,-500.0,0.00016438,2]
[396575380,1765056645172,-500.0,0.00016438,2]
[396575381,1765056645182,-500.0,0.00016438,2]
[396575382,1765056645192,-503.92500125,0.00016438,2]
[396575383,1765056645201,-164.00182,0.00016438,2]
[396575384,1765056645211,-151.0,0.00016438,2]
[396575385,1765056645221,-151.0,0.00016438,2]
[396575386,1765056645230,-151.0,0.00016438,2]
[396575387,1765056645240,-500.0,0.00016438,2]
[396575388,1765056645250,-151.0,0.00016438,2]
[396575389,1765056645260,-500.0,0.00016438,2]
[396575390,1765056645270,-151.0,0.00016438,2]
[396575391,1765056645280,-500.0,0.00016438,2]
[396575392,1765056645291,-500.0,0.00016438,2]
[396575393,1765056645302,-500.0,0.00016438,2]
[396575394,1765056645312,-500.90911204,0.00016438,2]
[396575395,1765056645322,-2338.39,0.00016438,2]
[396575396,1765056645332,-500.0,0.00016438,2]
[396575397,1765056645341,-500.0,0.00016438,2]
[396575398,1765056645350,-500.0,0.00016438,2]
[396575399,1765056645360,-274.873322,0.00016438,2]
[396575400,1765056645369,-969.31,0.00016438,2]
[396575401,1765056645378,-274.873322,0.00016438,2]
[396575402,1765056645388,-528.99950933,0.00016438,2]
[396575403,1765056645398,-500.0,0.00016438,2]
[396575404,1765056645408,-501.47051862,0.00016438,2]
[396575405,1765056645418,-274.873322,0.00016438,2]
[396575406,1765056645428,-500.0,0.00016438,2]
[396575407,1765056645437,-151.0,0.00016438,2]
[396575408,1765056645446,-500.0,0.00016438,2]
[396575409,1765056645455,-274.873322,0.00016438,2]
[396575410,1765056645464,-2332.69,0.00016438,2]
[396575411,1765056645474,-500.0,0.00016438,2]
[396575412,1765056645483,-500.0,0.00016438,2]
[396575413,1765056645492,-239.45619131,0.00016438,2]
[396575414,1765056645502,-500.0,0.00016438,2]
[396575415,1765056645511,-537.55739241,0.00016438,2]
[396575416,1765056645520,-500.0,0.00016438,2]
[396575417,1765056645530,-500.0,0.00016438,2]
[396575418,1765056645539,-999.04,0.00016438,2]
[396575419,1765056645549,-500.0,0.00016438,2]
[396575420,1765056645558,-500.0,0.00016438,2]
[396575421,1765056645567,-502.12195924,0.00016438,2]
[396575422,1765056645576,-3432.31,0.00016438,2]
[396575423,1765056645586,-500.0,0.00016438,2]
[396575424,1765056645595,-500.0,0.00016438,2]
[396575425,1765056645604,-501.31901779,0.00016438,2]
[396575426,1765056645613,-500.0,0.00016438,2]
[396575427,1765056645622,-500.0,0.00016438,2]
[396575428,1765056645632,-500.0,0.00016438,2]
[396575429,1765056645641,-500.0,0.00016438,2]
[396575430,1765056645650,-2173.68,0.00016438,2]
[396575431,1765056645659,-502.50500171,0.00016438,2]
[396575432,1765056645669,-500.0,0.00016438,2]
[396575433,1765056645678,-500.0,0.00016438,2]
[396575434,1765056645687,-500.0,0.00016438,2]
[396575435,1765056645696,-788.62,0.00016438,2]
[396575436,1765056645706,-500.0,0.00016438,2]
[396575437,1765056645715,-500.0,0.00016438,2]
[396575438,1765056645724,-500.0,0.00016438,2]
[396575439,1765056645734,-501.13680689,0.00016438,2]
[396575440,1765056645743,-500.0,0.00016438,2]
[396575441,1765056645756,-500.0,0.00016438,2]
[396575442,1765056645765,-405.35635816,0.00016438,2]
[396575443,1765056645775,-500.0,0.00016438,2]
[396575444,1765056645789,-500.0,0.00016438,2]
[396575445,1765056645798,-520.33,0.00016438,2]
[396575446,1765056645809,-501.595231,0.00016438,2]
[396575447,1765056645818,-597.7374744,0.00016438,2]
[396575448,1765056645830,-500.0,0.00016438,2]
[396575449,1765056645840,-500.0,0.00016438,2]
[396575450,1765056645849,-500.0,0.00016438,2]
[396575451,1765056645859,-500.0,0.00016438,2]
[396575452,1765056645869,-500.0,0.00016438,2]
[396575453,1765056645878,-2124.75,0.00016438,2]
[396575454,1765056645888,-500.0,0.00016438,2]
[396575455,1765056645897,-2650.5,0.00016438,2]
[396575456,1765056645906,-500.0,0.00016438,2]
[396575457,1765056645915,-500.0,0.00016438,2]
[396575458,1765056645925,-500.0,0.00016438,2]
[396575459,1765056645934,-500.0,0.00016438,2]
[396575460,1765056645944,-533.82691617,0.00016438,2]
[396575461,1765056645954,-500.0,0.00016438,2]
[396575462,1765056645963,-151.0,0.00016438,2]
[396575463,1765056645972,-500.0,0.00016438,2]
[396575464,1765056645982,-500.0,0.00016438,2]
[396575465,1765056646000,-835.16,0.00016438,2]
[396575466,1765056646010,-602.6582487,0.00016438,2]
[396575467,1765056646020,-500.0,0.00016438,2]
[396575468,1765056646029,-502.81938012,0.00016438,2]
[396575469,1765056646039,-500.0,0.00016438,2]
[396575470,1765056646048,-500.0,0.00016438,2]
[396575471,1765056646057,-531.04275083,0.00016438,2]
[396575472,1765056646067,-2661.46,0.00016438,2]
[396575473,1765056646076,-8956.936579,0.00016438,2]
[396575474,1765056646086,-197.471122,0.00016438,2]
[396575475,1765056646095,-151.0,0.00016438,2]
[396575476,1765056646104,-151.0,0.00016438,2]
[396575477,1765056646114,-500.0,0.00016438,2]
[396575478,1765056646123,-501.28485592,0.00016438,2]
[396575479,1765056646132,-4630.710733,0.00016438,2]
[396575480,1765056646141,-500.0,0.00016438,2]
[396575481,1765056646151,-500.0,0.00016438,2]
[396575482,1765056646160,-781.029587,0.00016438,2]
[396575483,1765056646170,-151.0,0.00016438,2]
[396575484,1765056646179,-500.0,0.00016438,2]
[396575485,1765056646188,-500.0,0.00016438,2]
[396575486,1765056646198,-500.0,0.00016438,2]
[396575487,1765056646207,-151.0,0.00016438,2]
[396575488,1765056646216,-500.0,0.00016438,2]
[396575489,1765056646226,-500.0,0.00016438,2]
[396575490,1765056646235,-151.0,0.00016438,2]
[396575491,1765056646245,-12836.761804,0.00016438,2]
[396575492,1765056646254,-587.05,0.00016438,2]
[396575493,1765056646263,-500.0,0.00016438,2]
[396575494,1765056646273,-151.0,0.00016438,2]
[396575495,1765056646283,-500.0,0.00016438,2]
[396575496,1765056646292,-2260.4,0.00016438,2]
[396575497,1765056646301,-500.0,0.00016438,2]
[396575498,1765056646311,-501.80059753,0.00016438,2]
[396575499,1765056646320,-500.0,0.00016438,2]
[396575500,1765056646330,-500.0,0.00016438,2]
[396575501,1765056646339,-501.79461231,0.00016438,2]
[396575502,1765056646349,-500.0,0.00016438,2]
[396575503,1765056646358,-501.60940422,0.00016438,2]
[396575504,1765056646368,-500.0,0.00016438,2]
[396575505,1765056646378,-985.782157,0.00016438,2]
[396575506,1765056646387,-500.0,0.00016438,2]
[396575507,1765056646396,-500.0,0.00016438,2]
[396575508,1765056646406,-2184.86,0.00016438,2]
[396575509,1765056646416,-985.782157,0.00016438,2]
[396575510,1765056646425,-985.782157,0.00016438,2]
[396575511,1765056646435,-500.0,0.00016438,2]
[396575512,1765056646444,-985.782157,0.00016438,2]
[396575513,1765056646453,-500.0,0.00016438,2]
[396575514,1765056646463,-500.0,0.00016438,2]
[396575515,1765056646473,-910.586378,0.00016438,2]
[396575516,1765056646482,-500.0,0.00016438,2]
[396575517,1765056646491,-500.56290882,0.00016438,2]
[396575518,1765056646501,-5781.832447,0.00016438,2]
[396575519,1765056646510,-500.0,0.00016438,2]
[396575520,1765056646519,-500.0,0.00016438,2]
[396575522,1765056646528,-2694.21,0.00016438,2]
[396575523,1765056646537,-503.57232445,0.00016438,2]
[396575524,1765056646547,-500.0,0.00016438,2]
[396575525,1765056646556,-500.0,0.00016438,2]
[396575526,1765056646566,-500.0,0.00016438,2]
[396575527,1765056646575,-500.0,0.00016438,2]
[396575528,1765056646584,-2898.52,0.00016438,2]
[396575529,1765056646593,-500.0,0.00016438,2]
[396575530,1765056646604,-500.90684395,0.00016438,2]
[396575531,1765056646613,-500.0,0.00016438,2]
[396575532,1765056646622,-2708.86,0.00016438,2]
[396575533,1765056646632,-500.0,0.00016438,2]
[396575534,1765056646642,-500.0,0.00016438,2]
[396575535,1765056646652,-500.0,0.00016438,2]
[396575536,1765056646662,-500.0,0.00016438,2]
[396575537,1765056646672,-151.0,0.00016438,2]
[396575538,1765056646682,-503.68682379,0.00016438,2]
[396575539,1765056646881,-500.0,0.00016438,2]
[396575540,1765056646905,-513.97,0.00016438,2]
[396575541,1765056646914,-573.51,0.00016438,2]
[396575542,1765056646924,-165.549258,0.00016438,2]
[396575543,1765056646933,-500.0,0.00016438,2]
[396575544,1765056646943,-165.549258,0.00016438,2]
[396575545,1765056646952,-500.0,0.00016438,2]
[396575546,1765056646962,-500.0,0.00016438,2]
[396575547,1765056646972,-165.549258,0.00016438,2]
[396575548,1765056646982,-500.0,0.00016438,2]
[396575549,1765056646991,-165.549258,0.00016438,2]
[396575550,1765056647000,-151.0,0.00016438,2]
[396575551,1765056647010,-502.8284715,0.00016438,2]
[396575552,1765056647019,-2605.76,0.00016438,2]
[396575553,1765056647029,-151.0,0.00016438,2]
[396575554,1765056647038,-5177.67,0.00016438,2]
[396575555,1765056647048,-500.0,0.00016438,2]
[396575556,1765056647057,-2397.67,0.00016438,2]
[396575557,1765056647067,-2615.62,0.00016438,2]
[396575558,1765056647076,-500.0,0.00016438,2]
[396575559,1765056647085,-504.9334364,0.00016438,2]
[396575560,1765056647094,-151.0,0.00016438,2]
[396575561,1765056647103,-500.0,0.00016438,2]
[396575562,1765056647113,-500.0,0.00016438,2]
[396575563,1765056647123,-500.0,0.00016438,2]
[396575564,1765056647132,-151.0,0.00016438,2]
[396575565,1765056647142,-500.0,0.00016438,2]
[396575566,1765056647151,-500.0,0.00016438,2]
[396575567,1765056647161,-500.0,0.00016438,2]
[396575568,1765056647170,-413.86168,0.00016438,2]
[396575569,1765056647180,-151.0,0.00016438,2]
[396575570,1765056647190,-413.86168,0.00016438,2]
[396575571,1765056647199,-501.94136737,0.00016438,2]
[396575572,1765056647209,-413.86168,0.00016438,2]
[396575573,1765056647218,-151.0,0.00016438,2]
[396575574,1765056647227,-500.0,0.00016438,2]
[396575575,1765056647237,-500.0,0.00016438,2]
[396575576,1765056647246,-413.86168,0.00016438,2]
[396575577,1765056647255,-151.0,0.00016438,2]
[396575578,1765056647264,-151.0,0.00016438,2]
[396575579,1765056647273,-654.86,0.00016438,2]
[396575580,1765056647283,-500.0,0.00016438,2]
[396575581,1765056647292,-500.0,0.00016438,2]
[396575582,1765056647300,-500.0,0.00016438,2]
[396575583,1765056647310,-549.06,0.00016438,2]
[396575584,1765056647319,-500.0,0.00016438,2]
[396575585,1765056647328,-500.0,0.00016438,2]
[396575586,1765056647337,-500.0,0.00016438,2]
[396575587,1765056647347,-500.0,0.00016438,2]
[396575588,1765056647357,-763.95,0.00016438,2]
[396575589,1765056647366,-500.0,0.00016438,2]
[396575590,1765056647376,-500.0,0.00016438,2]
[396575591,1765056647385,-500.0,0.00016438,2]
[396575592,1765056647395,-500.0,0.00016438,2]
[396575593,1765056647403,-503.6940755,0.00016438,2]
[396575594,1765056647413,-500.0,0.00016438,2]
[396575595,1765056647423,-500.0,0.00016438,2]
[396575596,1765056647432,-500.0,0.00016438,2]
[396575597,1765056647441,-500.0,0.00016438,2]
[396575598,1765056647450,-500.0,0.00016438,2]
[396575599,1765056647460,-151.0,0.00016438,2]
[396575600,1765056647469,-500.0,0.00016438,2]
[396575601,1765056647479,-500.0,0.00016438,2]
[396575602,1765056647488,-500.0,0.00016438,2]
[396575603,1765056647497,-502.55054745,0.00016438,2]
[396575604,1765056647507,-500.0,0.00016438,2]
[396575605,1765056647516,-503.05142644,0.00016438,2]
[396575606,1765056647525,-597.74,0.00016438,2]
[396575607,1765056647534,-500.0,0.00016438,2]
[396575608,1765056647543,-502.90216918,0.00016438,2]
[396575609,1765056647552,-500.0,0.00016438,2]
[396575610,1765056647562,-500.0,0.00016438,2]
[396575611,1765056647572,-500.0,0.00016438,2]
[396575612,1765056647581,-500.0,0.00016438,2]
[396575613,1765056647590,-500.0,0.00016438,2]
[396575614,1765056647599,-440.56757114,0.00016438,2]
[396575615,1765056647609,-500.0,0.00016438,2]
[396575616,1765056647618,-500.0,0.00016438,2]
[396575617,1765056647627,-500.0,0.00016438,2]
[396575618,1765056647636,-511.57149458,0.00016438,2]
[396575619,1765056647646,-500.0,0.00016438,2]
[396575620,1765056647655,-501.52980992,0.00016438,2]
[396575621,1765056647664,-677.53,0.00016438,2]
[396575622,1765056647673,-500.0,0.00016438,2]
[396575623,1765056647682,-500.0,0.00016438,2]
[396575624,1765056647691,-502.45785831,0.00016438,2]
[396575625,1765056647702,-2772.07,0.00016438,2]
[396575626,1765056647711,-500.0,0.00016438,2]
[396575627,1765056647721,-500.0,0.00016438,2]
[396575628,1765056647730,-500.0,0.00016438,2]
[396575629,1765056647739,-2523.21,0.00016438,2]
[396575630,1765056647753,-500.0,0.00016438,2]
[396575631,1765056647762,-500.0,0.00016438,2]
[396575632,1765056647772,-500.0,0.00016438,2]
[396575633,1765056647781,-500.0,0.00016438,2]
[396575634,1765056647791,-500.0,0.00016438,2]
[396575635,1765056647800,-500.0,0.00016438,2]
[396575636,1765056647810,-500.0,0.00016438,2]
[396575637,1765056647819,-500.0,0.00016438,2]
[396575638,1765056647830,-500.0,0.00016438,2]
[396575639,1765056647839,-151.0,0.00016438,2]
[396575640,1765056647849,-500.0,0.00016438,2]
[396575641,1765056647859,-501.86015835,0.00016438,2]
[396575642,1765056647868,-500.0,0.00016438,2]
[396575643,1765056647878,-500.63692728,0.00016438,2]
[396575644,1765056647888,-500.0,0.00016438,2]
[396575645,1765056647898,-500.0,0.00016438,2]
[396575646,1765056647908,-500.0,0.00016438,2]
[396575647,1765056647919,-151.0,0.00016438,2]
[396575648,1765056647928,-500.0,0.00016438,2]
[396575649,1765056647937,-1901.17,0.00016438,2]
[396575650,1765056647947,-886.04,0.00016438,2]
[396575651,1765056647956,-500.61317202,0.00016438,2]
[396575652,1765056647966,-151.0,0.00016438,2]
[396575653,1765056647976,-500.0,0.00016438,2]
[396575654,1765056647985,-152.764011,0.00016438,2]
[396575655,1765056647995,-500.0,0.00016438,2]
[396575656,1765056648004,-295.945209,0.00016438,2]
[396575657,1765056648014,-500.0,0.00016438,2]
[396575658,1765056648023,-2366.13,0.00016438,2]
[396575659,1765056648032,-151.0,0.00016438,2]
[396575660,1765056648041,-500.0,0.00016438,2]
[396575661,1765056648051,-212.8,0.00016438,2]
[396575662,1765056648061,-993.6,0.00016438,2]
[396575663,1765056648071,-500.0,0.00016438,2]
[396575664,1765056648080,-500.0,0.00016438,2]
[396575665,1765056648090,-500.0,0.00016438,2]
[396575666,1765056648101,-501.49533024,0.00016438,2]
[396575667,1765056648111,-500.0,0.00016438,2]
[396575668,1765056648122,-300.29885268,0.00016438,2]
[396575669,1765056648132,-503.02961058,0.00016438,2]
[396575670,1765056648142,-2345.42,0.00016438,2]
[396575671,1765056648151,-1095.4,0.00016438,2]
[396575672,1765056648161,-521.90828836,0.00016438,2]
[396575673,1765056648171,-500.0,0.00016438,2]
[396575674,1765056648181,-500.0,0.00016438,2]
[396575675,1765056648191,-500.0,0.00016438,2]
[396575676,1765056648201,-500.0,0.00016438,2]
[396575677,1765056648211,-500.0,0.00016438,2]
[396575678,1765056648222,-151.0,0.00016438,2]
[396575679,1765056648232,-655.43,0.00016438,2]
[396575680,1765056648241,-151.0,0.00016438,2]
[396575681,1765056648251,-215.18231,0.00016438,2]
[396575682,1765056648262,-501.84210844,0.00016438,2]
[396575683,1765056648272,-281.66687347,0.00016438,2]
[396575684,1765056648281,-500.0,0.00016438,2]
[396575685,1765056648292,-500.0,0.00016438,2]
[396575686,1765056648302,-691.52,0.00016438,2]
[396575687,1765056648312,-568.52588495,0.00016438,2]
[396575688,1765056648323,-175.060837,0.00016438,2]
[396575689,1765056648332,-151.0,0.00016438,2]
[396575690,1765056648341,-501.02980612,0.00016438,2]
[396575691,1765056648351,-500.0,0.00016438,2]
[396575692,1765056648360,-500.0,0.00016438,2]
[396575693,1765056648369,-505.68721948,0.00016438,2]
[396575694,1765056648379,-500.0,0.00016438,2]
[396575695,1765056648389,-725.49,0.00016438,2]
[396575696,1765056648398,-500.0,0.00016438,2]
[396575697,1765056648408,-500.0,0.00016438,2]
[396575698,1765056648419,-151.0,0.00016438,2]
[396575699,1765056648429,-500.0,0.00016438,2]
[396575700,1765056648438,-1959.03,0.00016438,2]
[396575701,1765056648449,-500.0,0.00016438,2]
[396575702,1765056648458,-858.99,0.00016438,2]
[396575703,1765056648469,-500.71579645,0.00016438,2]
[396575704,1765056648478,-503.14092991,0.00016438,2]
[396575705,1765056648487,-542.61572574,0.00016438,2]
[396575706,1765056648497,-1321.11,0.00016438,2]
[396575707,1765056648507,-500.0,0.00016438,2]
[396575708,1765056648518,-501.89648722,0.00016438,2]
[396575709,1765056648527,-612.50800914,0.00016438,2]
[396575710,1765056648538,-518.73877924,0.00016438,2]
[396575711,1765056648548,-500.0,0.00016438,2]
[396575712,1765056648559,-502.89890669,0.00016438,2]
[396575713,1765056648568,-500.0,0.00016438,2]
[396575714,1765056648578,-500.0,0.00016438,2]
[396575715,1765056648587,-500.0,0.00016438,2]
[396575716,1765056648597,-693.46,0.00016438,2]
[396575717,1765056648608,-1238.45,0.00016438,2]
[396575718,1765056648617,-532.55,0.00016438,2]
[396575719,1765056648627,-500.0,0.00016438,2]
[396575720,1765056648638,-1892.26,0.00016438,2]
[396575721,1765056648648,-2524.17,0.00016438,2]
[396575722,1765056648658,-2294.66,0.00016438,2]
[396575723,1765056648668,-500.0,0.00016438,2]
[396575724,1765056648677,-4706.18,0.00016438,2]
[396575725,1765056648687,-492.9402367,0.00016438,2]
[396575726,1765056648696,-2474.55,0.00016438,2]
[396575727,1765056648706,-425.60504475,0.00016438,2]
[396575728,1765056648717,-1871.66,0.00016438,2]
[396575729,1765056648728,-1758.07,0.00016438,2]
[396575730,1765056648738,-500.0,0.00016438,2]
[396575731,1765056648753,-500.0,0.00016438,2]
[396575732,1765056648763,-627.83,0.00016438,2]
[396575733,1765056648772,-2396.34,0.00016438,2]
[396575734,1765056648782,-500.0,0.00016438,2]
[396575735,1765056648795,-502.87487471,0.00016438,2]
[396575736,1765056648804,-503.23990933,0.00016438,2]
[396575737,1765056648814,-500.0,0.00016438,2]
[396575738,1765056648823,-500.0,0.00016438,2]
[396575739,1765056648833,-500.0,0.00016438,2]
[396575740,1765056648843,-500.0,0.00016438,2]
[396575741,1765056648853,-500.0,0.00016438,2]
[396575742,1765056648862,-606.42,0.00016438,2]
[396575743,1765056648872,-500.0,0.00016438,2]
[396575744,1765056648881,-500.0,0.00016438,2]
[396575745,1765056648890,-500.0,0.00016438,2]
[396575746,1765056648900,-500.0,0.00016438,2]
[396575747,1765056648909,-906.76,0.00016438,2]
[396575748,1765056648919,-2190.7,0.00016438,2]
[396575749,1765056648929,-500.0,0.00016438,2]
[396575750,1765056648938,-515.97,0.00016438,2]
[396575751,1765056648948,-189.67669,0.00016438,2]
[396575752,1765056648957,-2286.51,0.00016438,2]
[396575753,1765056648967,-500.0,0.00016438,2]
[396575754,1765056648976,-1347.5,0.00016438,2]
[396575755,1765056648986,-1479.28,0.00016438,2]
[396575756,1765056648996,-503.38318148,0.00016438,2]
[396575757,1765056649006,-710.67,0.00016438,2]
[396575758,1765056649016,-8082.7,0.00016438,2]
[396575759,1765056649026,-500.0,0.00016438,2]
[396575760,1765056649035,-500.0,0.00016438,2]
[396575761,1765056649044,-1609.38,0.00016438,2]
[396575762,1765056649053,-2502.65,0.00016438,2]
[396575763,1765056649063,-500.0,0.00016438,2]
[396575764,1765056649072,-500.0,0.00016438,2]
[396575765,1765056649083,-500.0,0.00016438,2]
[396575766,1765056649092,-500.0,0.00016438,2]
[396575767,1765056649103,-503.48297704,0.00016438,2]
[396575768,1765056649112,-512.34,0.00016438,2]
[396575769,1765056649122,-500.0,0.00016438,2]
[396575770,1765056649132,-500.0,0.00016438,2]
[396575771,1765056649142,-503.75717373,0.00016438,2]
[396575772,1765056649151,-500.0,0.00016438,2]
[396575773,1765056649161,-2231.84,0.00016438,2]
[396575774,1765056649170,-1340.17,0.00016438,2]
[396575775,1765056649179,-500.0,0.00016438,2]
[396575776,1765056649189,-237.642464,0.00016438,2]
[396575777,1765056649198,-151.0,0.00016438,2]
[396575778,1765056649207,-500.0,0.00016438,2]
[396575779,1765056649216,-500.0,0.00016438,2]
[396575780,1765056649226,-151.0,0.00016438,2]
[396575781,1765056649236,-500.0,0.00016438,2]
[396575782,1765056649246,-1226.59,0.00016438,2]
[396575783,1765056649255,-500.0,0.00016438,2]
[396575784,1765056649265,-500.0,0.00016438,2]
[396575785,1765056649274,-4033.66,0.00016438,2]
[396575786,1765056649348,-500.0,0.00016438,2]
[396575787,1765056649359,-500.0,0.00016438,2]
[396575788,1765056649368,-500.0,0.00016438,2]
[396575789,1765056649378,-618.4,0.00016438,2]
[396575790,1765056649387,-500.0,0.00016438,2]
[396575791,1765056649397,-507.56059366,0.00016438,2]
[396575792,1765056649407,-500.0,0.00016438,2]
[396575793,1765056649419,-2478.82,0.00016438,2]
[396575794,1765056649432,-151.0,0.00016438,2]
[396575795,1765056649444,-500.23624001,0.00016438,2]
[396575796,1765056649455,-500.0,0.00016438,2]
[396575797,1765056649466,-151.0,0.00016438,2]
[396575798,1765056649475,-500.0,0.00016438,2]
[396575799,1765056649489,-503.11146589,0.00016438,2]
[396575800,1765056649499,-2918.0,0.00016438,2]
[396575801,1765056649508,-684.81,0.00016438,2]
[396575802,1765056649518,-500.0,0.00016438,2]
[396575803,1765056649532,-2547.38,0.00016438,2]
[396575804,1765056649542,-500.0,0.00016438,2]
[396575805,1765056649551,-500.0,0.00016438,2]
[396575806,1765056649561,-500.0,0.00016438,2]
[396575807,1765056649570,-500.0,0.00016438,2]
[396575808,1765056649579,-551.42,0.00016438,2]
[396575809,1765056649589,-500.0,0.00016438,2]